bitfinex/quotes_BTCUSD_20250530
["timestamp","ask_amount","ask_price","bid_price","bid_amount"]
[1748574325722,0.19815059,105980.0,105970.0,1.44992404]
[1748574325926,0.19815059,105980.0,105970.0,1.44992732]
[1748574326545,0.19815059,105980.0,105970.0,1.04992732]
[1748574327783,0.19815059,105980.0,105970.0,1.05936359]
[1748574329248,0.19815059,105980.0,105970.0,1.02161797]
[1748574329470,0.19815059,105980.0,105970.0,1.32357433]
[1748574329686,0.19815059,105980.0,105970.0,1.3330106]
[1748574329903,0.01887121,105980.0,105970.0,1.35188224]
[1748574330101,0.01887121,105980.0,105970.0,1.3518833]
[1748574330308,0.02830623,105980.0,105970.0,1.3518833]
[1748574330520,0.01887014,105980.0,105970.0,5.7476413]
[1748574330728,0.03774099,105980.0,105970.0,6.06539438]
[1748574330935,0.0377409,105980.0,105970.0,6.06539438]
[1748574331135,0.00943494,105980.0,105970.0,6.06539438]
[1748574331342,0.01887005,105980.0,105970.0,6.06539438]
[1748574331548,0.02830543,105980.0,105970.0,6.06539438]
[1748574331760,0.02830534,105980.0,105970.0,6.20404438]
[1748574332181,0.02830534,105980.0,105970.0,6.15023338]
[1748574332598,0.00943494,105980.0,105970.0,6.13206049]
[1748574332804,0.01886997,105980.0,105970.0,6.13489049]
[1748574333014,0.01886997,105980.0,105970.0,3.0758527]
[1748574333221,0.04717602,105980.0,105970.0,3.0758527]
[1748574333424,0.04717673,105980.0,105970.0,2.85227178]
[1748574333649,0.03774108,105980.0,105970.0,2.85227178]
[1748574333858,0.03774108,105980.0,105970.0,3.02453678]
[1748574334067,0.03774099,105980.0,105970.0,3.02453678]
[1748574334705,0.22645646,105980.0,105970.0,3.01510105]
[1748574334925,0.22358597,105980.0,105970.0,0.19050192]
[1748574335144,0.22358597,105980.0,105970.0,0.48286192]
[1748574335362,0.22358597,105980.0,105970.0,0.47969395]
[1748574335588,0.23968597,105980.0,105970.0,0.47989395]
[1748574336019,0.23968597,105980.0,105970.0,0.18733395]
[1748574336240,0.23968597,105980.0,105970.0,0.47989395]
[1748574337107,0.23968597,105980.0,105970.0,0.38965395]
[1748574337754,0.23968597,105980.0,105970.0,0.006]
[1748574338266,0.20762488,105960.0,105950.0,0.10934969]
[1748574338505,0.20762488,105960.0,105950.0,0.49308364]
[1748574339944,0.20762488,105960.0,105950.0,0.62889364]
[1748574340390,0.20762488,105960.0,105950.0,0.49608364]
[1748574340864,0.20762488,105960.0,105950.0,0.18933395]
[1748574341104,0.20762488,105960.0,105950.0,0.48185395]
[1748574342403,0.20762488,105960.0,105950.0,0.61466395]
[1748574344999,0.20762488,105960.0,105950.0,0.64586395]
[1748574350640,0.02831087,105960.0,105950.0,4.05718224]
[1748574350852,0.03774821,105960.0,105950.0,3.69353618]
[1748574351051,0.01887371,105960.0,105950.0,3.55541626]
[1748574351266,0.00943681,105960.0,105950.0,3.95541626]
[1748574351475,0.20760538,105970.0,105960.0,1.72325409]
[1748574351676,0.21704138,105970.0,105960.0,1.8237452]
[1748574351864,0.22647801,105970.0,105960.0,1.83318227]
[1748574352280,0.21704201,105970.0,105960.0,2.2237452]
[1748574352575,0.21704201,105970.0,105960.0,2.22691214]
[1748574352795,0.21704201,105970.0,105960.0,2.23834921]
[1748574352996,0.009436,105970.0,105960.0,2.23834921]
[1748574353201,0.02830863,105970.0,105960.0,2.24778611]
[1748574353341,0.02830863,105970.0,105960.0,2.25178611]
[1748574353545,0.009436,105970.0,105960.0,2.25178611]
[1748574353787,0.01886997,105980.0,105970.0,3.38134096]
[1748574354011,0.18873739,105990.0,105980.0,0.95503935]
[1748574354012,0.22643474,105990.0,105980.0,0.95503935]
[1748574354232,0.22657452,105990.0,105980.0,0.94424287]
[1748574354421,0.20770563,105990.0,105980.0,0.96720731]
[1748574354638,0.20770563,105990.0,105980.0,0.4958508]
[1748574354905,0.19827096,105990.0,105980.0,0.2397978]
[1748574355114,0.19827096,105990.0,105980.0,0.42851265]
[1748574355321,0.19827096,105990.0,105980.0,0.43744821]
[1748574355526,0.19827096,105990.0,105980.0,0.82801265]
[1748574355729,0.19827096,105990.0,105980.0,0.6487938]
[1748574356157,0.19827096,105990.0,105980.0,0.6497938]
[1748574356375,0.19827096,105990.0,105980.0,0.65922954]
[1748574356578,0.19827096,105990.0,105980.0,0.66122954]
[1748574356777,0.19827096,105990.0,105980.0,0.6517938]
[1748574357197,0.19827096,105990.0,105980.0,0.8929948]
[1748574357832,0.53827096,105990.0,105980.0,0.49405395]
[1748574358045,0.56967096,105990.0,105980.0,0.09405395]
[1748574358258,0.56967096,105990.0,105980.0,0.38813395]
[1748574361011,0.56967096,105990.0,105980.0,0.003]
[1748574361214,0.56967096,105990.0,105980.0,0.29688]
[1748574361816,0.56891592,105990.0,105980.0,0.29688]
[1748574362018,0.56891592,105990.0,105980.0,0.003]
[1748574362218,0.56891592,105990.0,105980.0,0.29688]
[1748574362459,0.22891592,105990.0,105980.0,0.29688]
[1748574363233,0.56891592,105990.0,105980.0,0.003]
[1748574364330,0.56891592,105990.0,105980.0,0.001]
[1748574364549,0.22891592,105990.0,105980.0,0.001]
[1748574365455,0.56891592,105990.0,105980.0,0.001]
[1748574368060,0.75056987,105990.0,105980.0,0.001]
[1748574368472,1.04488987,105990.0,105980.0,0.001]
[1748574373557,0.20762488,105960.0,105950.0,0.3265]
[1748574373763,0.20762488,105960.0,105950.0,0.41755395]
[1748574374811,0.20762488,105960.0,105950.0,0.12315395]
[1748574374967,0.20762488,105960.0,105950.0,0.41731395]
[1748574375173,0.20762488,105960.0,105950.0,0.42131395]
[1748574375761,0.20762488,105960.0,105950.0,0.42431395]
[1748574376162,0.20762488,105960.0,105950.0,0.13015395]
[1748574376368,0.57952488,105960.0,105950.0,0.007]
[1748574376723,0.67057883,105960.0,105950.0,0.007]
[1748574377253,0.67057883,105960.0,105950.0,0.004]
[1748574377452,0.20766407,105940.0,105930.0,0.02]
[1748574378739,0.20766407,105940.0,105930.0,0.0220925]
[1748574379715,0.20766407,105940.0,105930.0,0.0523925]
[1748574379931,0.20766407,105940.0,105930.0,0.0563925]
[1748574382830,0.20766407,105940.0,105930.0,0.0260925]
[1748574387706,0.54766407,105940.0,105930.0,0.0260925]
[1748574388365,0.54766407,105940.0,105930.0,0.0220925]
[1748574388582,0.54766407,105940.0,105930.0,0.0200925]
[1748574388784,0.50766407,105940.0,105930.0,0.0200925]
[1748574389215,0.52654204,105940.0,105930.0,0.0200925]
[1748574389422,0.52654204,105940.0,105930.0,0.0210925]
[1748574390055,0.52654204,105940.0,105930.0,0.0230925]
[1748574390906,0.61822204,105940.0,105930.0,0.0230925]
[1748574391328,0.61822204,105940.0,105930.0,0.0200925]
[1748574392200,0.61822204,105940.0,105930.0,0.0210925]
[1748574394978,0.70927599,105940.0,105930.0,0.0210925]
[1748574397550,0.70927599,105940.0,105930.0,0.0200925]
[1748574397835,0.71027599,105940.0,105930.0,0.0200925]
[1748574404914,0.72027599,105940.0,105930.0,0.0200925]
[1748574405762,0.62859599,105940.0,105930.0,0.0200925]
[1748574405975,0.61859599,105940.0,105930.0,0.0200925]
[1748574406189,0.27859599,105940.0,105930.0,0.0200925]
[1748574406828,0.61859599,105940.0,105930.0,0.0200925]
[1748574407031,0.61759599,105940.0,105930.0,0.0200925]
[1748574407232,0.62059599,105940.0,105930.0,0.0200925]
[1748574407780,0.61759599,105940.0,105930.0,0.0200925]
[1748574407978,0.61959599,105940.0,105930.0,0.0200925]
[1748574408407,0.63549599,105940.0,105930.0,0.0200925]
[1748574408906,0.61959599,105940.0,105930.0,0.0200925]
[1748574409689,0.71099599,105940.0,105930.0,0.0200925]
[1748574410960,0.63519599,105940.0,105930.0,0.0200925]
[1748574411160,0.61959599,105940.0,105930.0,0.0200925]
[1748574411366,0.18854204,105940.0,105930.0,0.24109642]
[1748574411571,0.03031665,105940.0,105930.0,0.24109642]
[1748574411774,0.20966425,105940.0,105930.0,0.14334645]
[1748574413348,0.20766425,105940.0,105930.0,0.14334645]
[1748574413569,0.20866425,105940.0,105930.0,0.14334645]
[1748574413772,0.02931745,105940.0,105930.0,0.33451022]
[1748574414034,0.0104385,105940.0,105930.0,0.62153663]
[1748574414219,0.18875047,105960.0,105940.0,0.23552096]
[1748574414220,0.20764483,105950.0,105940.0,0.23552096]
[1748574414456,0.21708297,105950.0,105940.0,0.41797491]
[1748574414662,0.20764465,105950.0,105940.0,0.41797491]
[1748574415444,0.19820651,105950.0,105940.0,0.41797491]
[1748574416727,0.0188761,105950.0,105940.0,0.40565324]
[1748574416947,0.03775203,105950.0,105940.0,0.39621421]
[1748574417446,0.04719044,105950.0,105940.0,0.41787491]
[1748574417653,0.20762542,105960.0,105950.0,0.21986828]
[1748574417858,0.20762542,105960.0,105950.0,0.12215395]
[1748574419886,0.20862542,105960.0,105950.0,0.12215395]
[1748574422793,0.16862542,105960.0,105950.0,0.12215395]
[1748574428142,0.16862542,105960.0,105950.0,0.32782245]
[1748574428347,0.16862542,105960.0,105950.0,0.33490131]
[1748574428563,0.16862542,105960.0,105950.0,0.32546308]
[1748574428765,0.15918799,105960.0,105950.0,0.34433963]
[1748574428988,0.21806204,105960.0,105950.0,0.35377768]
[1748574429199,0.21706204,105960.0,105950.0,0.74433963]
[1748574429853,0.17706204,105960.0,105950.0,1.93092868]
[1748574430073,0.17706204,105960.0,105950.0,1.93192868]
[1748574430285,0.0188737,105960.0,105950.0,1.94136655]
[1748574430516,0.00943503,105980.0,105970.0,0.20760547]
[1748574430721,0.01886871,105990.0,105980.0,0.85421699]
[1748574430952,0.01886765,106000.0,105990.0,0.402423]
[1748574431220,0.20754689,106000.0,105990.0,0.12215395]
[1748574431433,0.20754689,106000.0,105990.0,0.52857937]
[1748574431644,0.20754689,106000.0,105990.0,0.52503895]
[1748574431855,0.20803817,106000.0,105990.0,0.41911395]
[1748574432938,0.20803817,106000.0,105990.0,0.41945455]
[1748574433140,0.20803817,106000.0,105990.0,0.42045455]
[1748574434628,0.28400076,106000.0,105990.0,0.0013406]
[1748574434836,0.65590076,106000.0,105990.0,0.0013406]
[1748574436916,0.57993817,106000.0,105990.0,0.0013406]
[1748574437323,0.54803817,106000.0,105990.0,0.0013406]
[1748574439650,0.54803817,106000.0,105990.0,0.0320406]
[1748574439855,0.20803817,106000.0,105990.0,0.12309455]
[1748574440261,0.54803817,106000.0,105990.0,0.12309455]
[1748574440673,0.20803817,106000.0,105990.0,0.12309455]
[1748574442661,0.20803817,106000.0,105990.0,0.0013406]
[1748574444805,0.20803817,106000.0,105990.0,0.0177406]
[1748574445031,0.20803817,106000.0,105990.0,0.0328406]
[1748574448924,0.20803817,106000.0,105990.0,0.12389455]
[1748574450181,0.02879226,106000.0,105990.0,0.33146066]
[1748574450389,0.00992444,106000.0,105990.0,0.35543582]
[1748574450604,0.01935804,106000.0,105990.0,1.40776982]
[1748574450812,0.03822533,106000.0,105990.0,0.982136]
[1748574451022,0.03822533,106000.0,105990.0,0.898549]
[1748574451241,0.02879137,106000.0,105990.0,0.898549]
[1748574451472,0.22690483,106000.0,105990.0,0.898549]
[1748574451678,0.20803799,106000.0,105990.0,0.3092428]
[1748574451883,0.1986043,106000.0,105990.0,0.31867765]
[1748574452093,0.18917052,106000.0,105990.0,0.31867765]
[1748574452312,0.18917052,106000.0,105990.0,0.31667765]
[1748574452516,0.18917052,106000.0,105990.0,0.3142428]
[1748574452738,0.18917052,106000.0,105990.0,0.2931008]
[1748574452943,0.18917052,106000.0,105990.0,0.57943995]
[1748574453402,0.18917052,106000.0,105990.0,0.54578995]
[1748574453600,0.18917052,106000.0,105990.0,0.0388406]
[1748574453884,0.18917052,106000.0,105990.0,0.3396406]
[1748574454042,0.18917052,106000.0,105990.0,0.0237406]
[1748574454240,0.18917052,106000.0,105990.0,0.3245406]
[1748574454412,0.18917052,106000.0,105990.0,0.0237406]
[1748574454892,0.18917052,106000.0,105990.0,0.0073406]
[1748574455352,0.20467052,106000.0,105990.0,0.0073406]
[1748574455514,0.56047052,106000.0,105990.0,0.0073406]
[1748574455789,0.56047052,106000.0,105990.0,0.0043406]
[1748574456022,0.56047052,106000.0,105990.0,0.0003406]
[1748574456241,0.56047052,106000.0,105990.0,0.0043406]
[1748574457474,0.52917052,106000.0,105990.0,0.0043406]
[1748574458069,0.53797767,106000.0,105990.0,0.0043406]
[1748574458479,0.52917052,106000.0,105990.0,0.0043406]
[1748574458887,0.53797767,106000.0,105990.0,0.0043406]
[1748574459408,0.52917052,106000.0,105990.0,0.0043406]
[1748574459614,0.53797767,106000.0,105990.0,0.0043406]
[1748574459821,0.53798306,106000.0,105990.0,0.0043406]
[1748574460025,0.52917052,106000.0,105990.0,0.0043406]
[1748574461060,0.53798885,106000.0,105990.0,0.0043406]
[1748574461268,0.52917052,106000.0,105990.0,0.0043406]
[1748574461948,0.53798789,106000.0,105990.0,0.0043406]
[1748574462180,0.52917052,106000.0,105990.0,0.0043406]
[1748574462422,0.18917052,106000.0,105990.0,0.0359406]
[1748574462670,0.18917052,106000.0,105990.0,0.12699455]
[1748574462899,0.18917052,106000.0,105990.0,0.42867455]
[1748574468580,0.18917052,106000.0,105990.0,0.42951455]
[1748574469853,0.18917052,106000.0,105990.0,0.42939455]
[1748574475679,0.19860448,106000.0,105990.0,0.65150169]
[1748574475907,0.01935839,106000.0,105990.0,1.08268869]
[1748574476130,0.22690546,106000.0,105990.0,1.10155767]
[1748574476360,0.03822622,106000.0,105990.0,1.11099198]
[1748574476590,0.02879226,106000.0,105990.0,1.11099198]
[1748574476824,0.00049128,106000.0,105990.0,3.77837431]
[1748574477090,0.00049128,106000.0,105990.0,3.77521249]
[1748574477510,0.00049128,106000.0,105990.0,4.20027959]
[1748574477717,0.00049128,106000.0,105990.0,6.50209059]
[1748574477922,0.00049128,106000.0,105990.0,6.50609059]
[1748574478158,0.00049128,106000.0,105990.0,6.50207099]
[1748574478370,0.00992444,106000.0,105990.0,4.95525599]
[1748574478571,0.00049128,106000.0,105990.0,4.68629399]
[1748574478786,0.0287912,106000.0,105990.0,3.28746999]
[1748574479005,0.01935769,106000.0,105990.0,2.93346362]
[1748574479251,0.01935769,106000.0,105990.0,2.93746362]
[1748574479507,0.03822462,106000.0,105990.0,2.94167411]
[1748574479745,0.03822462,106000.0,105990.0,1.42901511]
[1748574479958,0.03822462,106000.0,105990.0,2.84901511]
[1748574480385,0.03822453,106000.0,105990.0,2.84901511]
[1748574480606,0.01935769,106000.0,105990.0,2.84901511]
[1748574480853,0.02879111,106000.0,105990.0,5.15850111]
[1748574481079,0.02879111,106000.0,105990.0,5.30500862]
[1748574481302,0.20803817,106000.0,105990.0,0.97240487]
[1748574481508,0.20803817,106000.0,105990.0,1.06547937]
[1748574481718,0.20803817,106000.0,105990.0,1.06126905]
[1748574481923,0.20803817,106000.0,105990.0,1.0758099]
[1748574482814,0.01935786,106000.0,105990.0,1.29281041]
[1748574483030,0.01935786,106000.0,105990.0,0.7361299]
[1748574483031,0.20803817,106000.0,105990.0,0.7361299]
[1748574483244,0.20803817,106000.0,105990.0,0.7127689]
[1748574483712,0.20803817,106000.0,105990.0,0.72220375]
[1748574484129,0.20803817,106000.0,105990.0,0.91090079]
[1748574484361,0.00049128,106000.0,105990.0,5.62028726]
[1748574484574,0.00992461,106000.0,105990.0,5.62134008]
[1748574484819,0.0287919,106000.0,105990.0,2.78487677]
[1748574485040,0.0287919,106000.0,105990.0,1.58462828]
[1748574485041,0.20803781,106000.0,105990.0,1.58462828]
[1748574485286,0.20803781,106000.0,105990.0,3.8756894]
[1748574485535,0.20803781,106000.0,105990.0,3.88197126]
[1748574485777,0.20803781,106000.0,105990.0,3.87568925]
[1748574486017,0.20803781,106000.0,105990.0,4.28512374]
[1748574486267,0.20803781,106000.0,105990.0,4.29455814]
[1748574486514,0.02879253,106000.0,105990.0,4.85613475]
[1748574486804,0.02879253,106000.0,105990.0,4.85928686]
[1748574487065,0.01709231,106000.0,105990.0,4.85613475]
[1748574487300,0.01709231,106000.0,105990.0,1.18889675]
[1748574487550,0.02652609,106000.0,105990.0,4.96690675]
[1748574487774,0.21520533,106000.0,105990.0,3.57542535]
[1748574488003,0.21520533,106000.0,105990.0,2.92032113]
[1748574488214,0.1981132,106000.0,105990.0,0.8605599]
[1748574488426,0.1981132,106000.0,105990.0,0.10039455]
[1748574489084,0.1981132,106000.0,105990.0,0.40815455]
[1748574489522,0.1981132,106000.0,105990.0,0.40303455]
[1748574489951,0.2284132,106000.0,105990.0,0.40699455]
[1748574490174,0.2284132,106000.0,105990.0,0.40299455]
[1748574490601,0.2284132,106000.0,105990.0,0.0063406]
[1748574491469,0.61998192,106000.0,105990.0,0.0063406]
[1748574491675,0.61998192,106000.0,105990.0,0.0003406]
[1748574492286,0.2284132,106000.0,105990.0,0.0003406]
[1748574492519,0.61998192,106000.0,105990.0,0.0003406]
[1748574492936,0.61998192,106000.0,105990.0,0.0033406]
[1748574493562,0.2284132,106000.0,105990.0,0.0033406]
[1748574493795,0.61998192,106000.0,105990.0,0.0033406]
[1748574494863,0.2133132,106000.0,105990.0,0.0033406]
[1748574495082,0.60488192,106000.0,105990.0,0.0033406]
[1748574495296,0.58968192,106000.0,105990.0,0.0033406]
[1748574495519,0.58968192,106000.0,105990.0,0.09439455]
[1748574495520,0.1981132,106000.0,105990.0,0.09439455]
[1748574495783,0.1981132,106000.0,105990.0,0.12609455]
[1748574496037,0.1981132,106000.0,105990.0,0.11019455]
[1748574498493,0.1981132,106000.0,105990.0,0.09439455]
[1748574503119,0.58968192,106000.0,105990.0,0.09439455]
[1748574503964,0.1981132,106000.0,105990.0,0.09439455]
[1748574504631,0.1981132,106000.0,105990.0,0.12619455]
[1748574511776,0.1981132,106000.0,105990.0,0.1407354]
[1748574512006,0.1981132,106000.0,105990.0,0.14309389]
[1748574514656,0.1981132,106000.0,105990.0,0.4473354]
[1748574514878,0.58960961,106000.0,105990.0,0.4473354]
[1748574515359,0.1981132,106000.0,105990.0,0.4473354]
[1748574515772,0.58960961,106000.0,105990.0,0.4473354]
[1748574515975,0.58960961,106000.0,105990.0,0.41731455]
[1748574518584,0.58960961,106000.0,105990.0,0.4204705]
[1748574518783,0.58960961,106000.0,105990.0,0.1139505]
[1748574519001,0.58960961,106000.0,105990.0,0.4038305]
[1748574519638,0.1981132,106000.0,105990.0,0.4358305]
[1748574521285,0.1981132,106000.0,105990.0,0.43267455]
[1748574521496,0.1981132,106000.0,105990.0,0.43583651]
[1748574523100,0.1981132,106000.0,105990.0,0.12955651]
[1748574523435,0.1981132,106000.0,105990.0,0.41931651]
[1748574523646,0.1981132,106000.0,105990.0,0.40351651]
[1748574524052,0.1981132,106000.0,105990.0,0.43501651]
[1748574524702,0.58960961,106000.0,105990.0,0.43501651]
[1748574525110,0.58960961,106000.0,105990.0,0.42001651]
[1748574525776,0.58960961,106000.0,105990.0,0.40351926]
[1748574526912,0.58960961,106000.0,105990.0,0.40331926]
[1748574529804,0.58960961,106000.0,105990.0,0.40332013]
[1748574530211,0.58960961,106000.0,105990.0,0.09756013]
[1748574530411,0.58960961,106000.0,105990.0,0.40300013]
[1748574531924,0.1981132,106000.0,105990.0,0.40300013]
[1748574532192,0.58960961,106000.0,105990.0,0.40300013]
[1748574532416,0.58960961,106000.0,105990.0,0.09756013]
[1748574532663,0.58960961,106000.0,105990.0,0.40280013]
[1748574534063,0.1981132,106000.0,105990.0,0.40280014]
[1748574534281,0.1981132,106000.0,105990.0,0.09756014]
[1748574534530,0.1981132,106000.0,105990.0,0.40256014]
[1748574535373,0.1981132,106000.0,105990.0,0.40244014]
[1748574535587,0.1981132,106000.0,105990.0,0.41824014]
[1748574535800,0.1981132,106000.0,105990.0,0.43474014]
[1748574538270,0.2181132,106000.0,105990.0,0.43474008]
[1748574538710,0.2181132,106000.0,105990.0,0.12986008]
[1748574538956,0.2181132,106000.0,105990.0,0.43438008]
[1748574540431,0.2181132,106000.0,105990.0,0.40208008]
[1748574541198,0.2181132,106000.0,105990.0,0.39891455]
[1748574541429,0.2181132,106000.0,105990.0,0.40208011]
[1748574541922,0.21773583,106000.0,105990.0,0.40208011]
[1748574542175,0.21773583,106000.0,105990.0,0.41788011]
[1748574542417,0.21773583,106000.0,105990.0,0.43298011]
[1748574544921,0.21773583,106000.0,105990.0,0.42981455]
[1748574545155,0.21773583,106000.0,105990.0,0.43298065]
[1748574548874,0.24883583,106000.0,105990.0,0.0065067]
[1748574549085,0.25767042,106000.0,105990.0,0.0033406]
[1748574549307,0.58883583,106000.0,105990.0,0.0033406]
[1748574549956,0.58483583,106000.0,105990.0,0.0013406]
[1748574550387,0.58483583,106000.0,105990.0,0.0003406]
[1748574550597,0.67588978,106000.0,105990.0,0.0003406]
[1748574551472,0.67588978,106000.0,105990.0,0.0013406]
[1748574570621,0.77625978,106000.0,105990.0,0.0003406]
[1748574570849,0.67688978,106000.0,105990.0,0.0003406]
[1748574571067,0.20762488,105960.0,105950.0,0.0315]
[1748574572151,0.19462488,105960.0,105950.0,0.0315]
[1748574572373,0.20406222,105960.0,105950.0,0.0315]
[1748574572585,0.20411127,105960.0,105950.0,0.0335]
[1748574573290,0.20411127,105960.0,105950.0,0.0355]
[1748574573518,0.55971127,105960.0,105950.0,0.004]
[1748574573751,0.66626522,105960.0,105950.0,0.004]
[1748574574665,0.76358522,105960.0,105950.0,0.004]
[1748574574880,0.56900651,105950.0,105940.0,0.04]
[1748574575729,0.55320651,105950.0,105940.0,0.04]
[1748574576621,0.53820651,105950.0,105940.0,0.04]
[1748574576840,0.53820651,105950.0,105940.0,0.0715]
[1748574577060,0.53820651,105950.0,105940.0,0.0735]
[1748574577259,0.53820651,105950.0,105940.0,0.044]
[1748574577689,0.53820651,105950.0,105940.0,0.024]
[1748574578138,0.53820651,105950.0,105940.0,0.0559]
[1748574579468,0.19820651,105950.0,105940.0,0.0559]
[1748574579912,0.19820651,105950.0,105940.0,0.14695395]
[1748574584703,0.19820651,105950.0,105940.0,0.0559]
[1748574585350,0.15820651,105950.0,105940.0,0.0559]
[1748574585573,0.16764474,105950.0,105940.0,0.0559]
[1748574586005,0.16764474,105950.0,105940.0,0.0395]
[1748574586254,0.16764474,105950.0,105940.0,0.024]
[1748574586255,0.53954474,105950.0,105940.0,0.024]
[1748574586485,0.63059869,105950.0,105940.0,0.024]
[1748574586712,1.11849869,105950.0,105940.0,0.024]
[1748574586956,1.11849869,105950.0,105940.0,0.022]
[1748574587176,0.99554474,105950.0,105940.0,0.02]
[1748574587604,0.99554474,105950.0,105940.0,0.021]
[1748574587820,0.99554474,105950.0,105940.0,0.02]
[1748574588465,1.02714474,105950.0,105940.0,0.02]
[1748574588671,0.99554474,105950.0,105940.0,0.02]
[1748574588881,1.01134474,105950.0,105940.0,0.02]
[1748574589517,1.01234474,105950.0,105940.0,0.02]
[1748574589726,0.99654474,105950.0,105940.0,0.02]
[1748574590815,1.01154474,105950.0,105940.0,0.02]
[1748574591439,0.52364474,105950.0,105940.0,0.02]
[1748574592286,0.50864474,105950.0,105940.0,0.02]
[1748574602331,0.50864474,105950.0,105940.0,0.0503]
[1748574602535,0.16864474,105950.0,105940.0,0.0503]
[1748574603608,0.16764474,105950.0,105940.0,0.0503]
[1748574604895,0.16764474,105950.0,105940.0,0.0513]
[1748574606187,0.16764474,105950.0,105940.0,0.14235395]
[1748574612177,0.16764474,105950.0,105940.0,0.44611395]
[1748574612599,0.12764474,105950.0,105940.0,0.44611395]
[1748574612836,0.12764474,105950.0,105940.0,0.44627395]
[1748574613252,0.12764474,105950.0,105940.0,0.14235395]
[1748574613500,0.12764474,105950.0,105940.0,0.44635395]
[1748574619717,0.08764474,105950.0,105940.0,0.44635395]
[1748574624859,0.08764474,105950.0,105940.0,0.14235395]
[1748574625087,0.08764474,105950.0,105940.0,0.44491395]
[1748574626735,0.04764474,105950.0,105940.0,0.44491395]
[1748574634775,0.04764474,105950.0,105940.0,0.44807406]
[1748574636082,0.04764474,105950.0,105940.0,0.42807406]
[1748574638041,0.04764474,105950.0,105940.0,0.42491395]
[1748574638255,0.04764474,105950.0,105940.0,0.42808126]
[1748574640634,0.00764474,105950.0,105940.0,0.42808126]
[1748574640841,0.19641302,105950.0,105940.0,0.42808126]
[1748574642370,0.19641302,105950.0,105940.0,0.42808172]
[1748574646678,0.19641302,105950.0,105940.0,0.42808123]
[1748574648168,0.15641302,105950.0,105940.0,0.42808123]
[1748574649196,0.16585125,105950.0,105940.0,0.42808123]
[1748574650903,0.16585125,105950.0,105940.0,0.42808108]
[1748574655205,0.12585125,105950.0,105940.0,0.42808108]
[1748574659307,0.12585125,105950.0,105940.0,0.42808105]
[1748574661855,0.12585125,105950.0,105940.0,0.42808111]
[1748574662054,0.12585125,105950.0,105940.0,0.42372111]
[1748574662275,0.08585125,105950.0,105940.0,0.42372111]
[1748574662940,0.08585125,105950.0,105940.0,0.42055395]
[1748574663502,0.08585125,105950.0,105940.0,0.12235395]
[1748574663693,0.08585125,105950.0,105940.0,0.42039395]
[1748574664534,0.08585125,105950.0,105940.0,0.42356111]
[1748574665274,0.08585125,105950.0,105940.0,0.43810196]
[1748574666345,0.08585125,105950.0,105940.0,0.43810199]
[1748574667198,0.01887637,105950.0,105940.0,1.93081821]
[1748574667415,0.18879952,105960.0,105950.0,0.6136155]
[1748574667416,0.19823686,105960.0,105950.0,0.6136155]
[1748574667635,0.02835992,105960.0,105950.0,1.91717604]
[1748574667849,0.23598534,105960.0,105950.0,1.94637947]
[1748574668062,0.22654853,105960.0,105950.0,2.31806532]
[1748574668275,0.21711163,105960.0,105950.0,2.31806532]
[1748574668500,0.21711163,105960.0,105950.0,2.28463931]
[1748574668718,0.21711163,105960.0,105950.0,2.58650031]
[1748574669158,0.21711163,105960.0,105950.0,2.58951871]
[1748574669357,0.21711163,105960.0,105950.0,2.59373486]
[1748574669358,0.17711163,105960.0,105950.0,2.59373486]
[1748574669598,0.17711163,105960.0,105950.0,0.84285586]
[1748574669816,0.17711163,105960.0,105950.0,2.92611386]
[1748574670019,0.17711163,105960.0,105950.0,2.90561586]
[1748574670250,0.17711163,105960.0,105950.0,2.90961587]
[1748574670918,0.17711163,105960.0,105950.0,2.82544387]
[1748574672007,0.17711163,105960.0,105950.0,2.87346787]
[1748574672465,0.17711163,105960.0,105950.0,2.62975605]
[1748574672868,0.17711163,105960.0,105950.0,2.97787737]
[1748574673515,0.17711163,105960.0,105950.0,2.69188505]
[1748574673719,0.17711163,105960.0,105950.0,2.68120105]
[1748574673920,0.17711163,105960.0,105950.0,2.97019405]
[1748574674339,0.17711163,105960.0,105950.0,2.76533605]
[1748574674544,0.17711163,105960.0,105950.0,2.76533607]
[1748574674725,0.17711163,105960.0,105950.0,2.77477439]
[1748574674957,0.17711163,105960.0,105950.0,3.01228339]
[1748574675291,0.17711163,105960.0,105950.0,2.83437662]
[1748574675938,0.17711163,105960.0,105950.0,2.82493839]
[1748574676169,0.17711163,105960.0,105950.0,2.81890039]
[1748574676420,0.13711163,105960.0,105950.0,2.8220568]
[1748574677079,0.13711163,105960.0,105950.0,3.1188768]
[1748574677550,0.13711163,105960.0,105950.0,3.09745765]
[1748574678240,0.13711163,105960.0,105950.0,2.92800765]
[1748574678558,0.13711163,105960.0,105950.0,2.92800703]
[1748574679219,0.13687338,105960.0,105950.0,3.12031003]
[1748574679464,0.13687338,105960.0,105950.0,3.01982618]
[1748574679833,0.13687338,105960.0,105950.0,3.01365196]
[1748574680022,0.13687338,105960.0,105950.0,3.01982604]
[1748574680260,0.13687338,105960.0,105950.0,3.13248804]
[1748574681250,0.13687338,105960.0,105950.0,3.14192618]
[1748574681459,0.13687338,105960.0,105950.0,0.86688818]
[1748574681867,0.13687338,105960.0,105950.0,3.14692618]
[1748574682315,0.13687338,105960.0,105950.0,3.09974518]
[1748574682547,0.13687338,105960.0,105950.0,2.99504518]
[1748574682748,0.13687338,105960.0,105950.0,3.14692618]
[1748574683310,0.11574815,105960.0,105950.0,2.82393914]
[1748574683531,0.11574815,105960.0,105950.0,2.81028503]
[1748574683682,0.11574815,105960.0,105950.0,2.95272603]
[1748574684048,0.11574815,105960.0,105950.0,2.96216408]
[1748574684921,0.11574815,105960.0,105950.0,2.79797503]
[1748574685148,0.11574815,105960.0,105950.0,1.35948703]
[1748574685844,0.11574815,105960.0,105950.0,1.15683203]
[1748574686063,0.11574815,105960.0,105950.0,1.74310903]
[1748574686535,0.11574815,105960.0,105950.0,1.64154818]
[1748574686745,0.11574815,105960.0,105950.0,1.51143418]
[1748574686971,0.11574815,105960.0,105950.0,1.63359401]
[1748574687886,0.11574815,105960.0,105950.0,1.16104901]
[1748574688140,0.11574815,105960.0,105950.0,1.70884101]
[1748574688399,0.11574815,105960.0,105950.0,1.70568453]
[1748574688798,0.11574815,105960.0,105950.0,1.63168253]
[1748574689719,0.11574815,105960.0,105950.0,1.64112049]
[1748574689920,0.11574815,105960.0,105950.0,3.47776249]
[1748574690370,0.11574815,105960.0,105950.0,3.48720036]
[1748574690580,0.11574815,105960.0,105950.0,3.4809205]
[1748574690581,0.07574815,105960.0,105950.0,3.4809205]
[1748574690978,0.07574815,105960.0,105950.0,4.2038545]
[1748574691322,0.07574815,105960.0,105950.0,3.6819865]
[1748574691486,0.07574815,105960.0,105950.0,3.48458049]
[1748574692027,0.07574815,105960.0,105950.0,3.48486349]
[1748574692240,0.07574815,105960.0,105950.0,3.25138149]
[1748574692983,0.07574815,105960.0,105950.0,3.55813149]
[1748574693392,0.07574815,105960.0,105950.0,3.37078649]
[1748574693979,0.07574815,105960.0,105950.0,1.16733049]
[1748574694189,0.07574815,105960.0,105950.0,3.37078649]